fUSD/lending_fUSD_20251014
["ID","MTS","AMOUNT","RATE_DAILY","PERIOD"]
[391254239,1760439046879,-199.873248,0.00021779,7]
[391254240,1760439046888,-151.0,0.00021779,7]
[391254241,1760439046898,-199.873248,0.00021779,7]
[391254242,1760439046907,-199.873248,0.00021779,7]
[391254243,1760439046917,-199.873248,0.00021779,7]
[391254244,1760439046926,-151.0,0.00021779,7]
[391254245,1760439046937,-151.0,0.00021779,7]
[391254246,1760439046947,-151.0,0.00021779,7]
[391254247,1760439046956,-152.279427,0.00021779,7]
[391254248,1760439046966,-209.60516,0.00021779,7]
[391254249,1760439046981,-151.0,0.00021779,7]
[391254250,1760439046997,-151.0,0.00021779,7]
[391254251,1760439047008,-151.0,0.00021779,7]
[391254252,1760439047031,-151.0,0.00021779,7]
[391254253,1760439047053,-151.0,0.00021779,7]
[391254254,1760439047063,-151.0,0.00021779,7]
[391254255,1760439047073,-154.600639,0.00021779,7]
[391254256,1760439047083,-151.0,0.00021779,7]
[391254257,1760439047093,-151.0,0.00021779,7]
[391254258,1760439047104,-151.0,0.00021779,7]
[391254259,1760439047113,-189.891477,0.00021779,7]
[391254260,1760439047123,-151.0,0.00021779,7]
[391254261,1760439047132,-392.240886,0.00021779,7]
[391254262,1760439047142,-392.240886,0.00021779,7]
[391254263,1760439047151,-392.240886,0.00021779,7]
[391254264,1760439047161,-392.240886,0.00021779,7]
[391254265,1760439047171,-151.0,0.00021779,7]
[391254266,1760439047181,-681.483582,0.00021779,7]
[391254267,1760439047192,-681.483582,0.00021779,7]
[391254268,1760439047202,-681.483582,0.00021779,7]
[391254269,1760439047212,-151.0,0.00021779,7]
[391254270,1760439047222,-681.483582,0.00021779,7]
[391254271,1760439047231,-151.0,0.00021779,7]
[391254272,1760439047241,-151.0,0.00021779,7]
[391254273,1760439047250,-278.229591,0.00021779,7]
[391254274,1760439047259,-278.229591,0.00021779,7]
[391254275,1760439047269,-278.229591,0.00021779,7]
[391254276,1760439047278,-259.525822,0.00021779,7]
[391254277,1760439047288,-278.229591,0.00021779,7]
[391254278,1760439047297,-259.525822,0.00021779,7]
[391254279,1760439047307,-259.525822,0.00021779,7]
[391254280,1760439047318,-259.525822,0.00021779,7]
[391254281,1760439047327,-151.0,0.00021779,7]
[391254282,1760439047337,-151.0,0.00021779,7]
[391254283,1760439047347,-225.576343,0.00021779,7]
[391254284,1760439047357,-501.263301,0.00021779,7]
[391254285,1760439047366,-501.263301,0.00021779,7]
[391254286,1760439047376,-501.263301,0.00021779,7]
[391254287,1760439047385,-501.263301,0.00021779,7]
[391254288,1760439047399,-196.73936,0.00021779,7]
[391254289,1760439047411,-631.318976,0.00021779,7]
[391254290,1760439047421,-196.73936,0.00021779,7]
[391254291,1760439047433,-631.318976,0.00021779,7]
[391254292,1760439047445,-196.73936,0.00021779,7]
[391254293,1760439047455,-631.318976,0.00021779,7]
[391254294,1760439047466,-196.73936,0.00021779,7]
[391254295,1760439047476,-631.318976,0.00021779,7]
[391254296,1760439047486,-151.0,0.00021779,7]
[391254297,1760439047495,-151.0,0.00021779,7]
[391254298,1760439047505,-151.0,0.00021779,7]
[391254299,1760439047514,-151.0,0.00021779,7]
[391254300,1760439047524,-250.128082,0.00021779,7]
[391254301,1760439047534,-151.0,0.00021779,7]
[391254302,1760439047543,-250.128082,0.00021779,7]
[391254303,1760439047553,-151.0,0.00021779,7]
[391254304,1760439047563,-151.0,0.00021779,7]
[391254305,1760439047573,-151.0,0.00021779,7]
[391254306,1760439047583,-250.128082,0.00021779,7]
[391254307,1760439047593,-151.0,0.00021779,7]
[391254308,1760439047603,-250.128082,0.00021779,7]
[391254309,1760439047613,-151.0,0.00021779,7]
[391254310,1760439047623,-151.0,0.00021779,7]
[391254311,1760439047632,-151.0,0.00021779,7]
[391254312,1760439047642,-249.884895,0.00021779,7]
[391254313,1760439047652,-151.0,0.00021779,7]
[391254314,1760439047661,-169.868884,0.00021779,7]
[391254315,1760439047671,-169.868884,0.00021779,7]
[391254316,1760439047680,-169.868884,0.00021779,7]
[391254317,1760439047692,-151.0,0.00021779,7]
[391254318,1760439047702,-169.868884,0.00021779,7]
[391254319,1760439047716,-151.0,0.00021779,7]
[391254320,1760439047725,-151.0,0.00021779,7]
[391254321,1760439047735,-151.0,0.00021779,7]
[391254322,1760439047745,-151.0,0.00021779,7]
[391254323,1760439047754,-152.866944,0.00021779,7]
[391254324,1760439047763,-158.42136,0.00021779,7]
[391254325,1760439047773,-151.0,0.00021779,7]
[391254326,1760439047783,-154.435479,0.00021779,7]
[391254327,1760439047793,-314.169289,0.00021779,7]
[391254328,1760439047802,-314.169289,0.00021779,7]
[391254329,1760439047812,-314.169289,0.00021779,7]
[391254330,1760439047824,-314.169289,0.00021779,7]
[391254331,1760439047833,-151.0,0.00021779,7]
[391254332,1760439047843,-151.0,0.00021779,7]
[391254333,1760439047853,-151.0,0.00021779,7]
[391254334,1760439047863,-151.804807,0.00021779,7]
[391254335,1760439047872,-151.0,0.00021779,7]
[391254336,1760439047882,-151.0,0.00021779,7]
[391254337,1760439047891,-151.0,0.00021779,7]
[391254338,1760439047901,-273.026639,0.00021779,7]
[391254339,1760439047911,-160.489228,0.00021779,2]
[391254340,1760439047921,-259.316975,0.00021779,7]
[391254341,1760439047931,-151.0,0.00021779,7]
[391254342,1760439047943,-151.0,0.00021779,7]
[391254343,1760439047952,-395.985823,0.00021779,7]
[391254344,1760439047963,-277.613176,0.00021779,7]
[391254345,1760439047973,-395.985823,0.00021779,7]
[391254346,1760439047983,-395.985823,0.00021779,7]
[391254347,1760439047992,-395.985823,0.00021779,7]
[391254348,1760439048001,-151.0,0.00021779,7]
[391254349,1760439048011,-288.248107,0.00021779,7]
[391254350,1760439048021,-151.0,0.00021779,7]
[391254351,1760439048031,-2335.873694,0.00021779,7]
[391254352,1760439048040,-151.0,0.00021779,7]
[391254353,1760439048050,-2335.873694,0.00021779,7]
[391254354,1760439048060,-151.0,0.00021779,7]
[391254355,1760439048070,-151.0,0.00021779,7]
[391254356,1760439048079,-151.0,0.00021779,7]
[391254357,1760439048090,-2335.873694,0.00021779,7]
[391254358,1760439048099,-151.0,0.00021779,7]
[391254359,1760439048109,-2335.873694,0.00021779,7]
[391254360,1760439048119,-151.0,0.00021779,7]
[391254361,1760439048128,-55555.0,0.00021779,3]
[391254362,1760439048138,-198.36554219,0.0002178,2]
[391254363,1760439048147,-2038.69316432,0.0002178,2]
[391254364,1760439048156,-176.3001148,0.0002178,2]
[391254365,1760439048166,-3915.09681178,0.0002178,2]
[391254366,1760439048176,-1053.50238248,0.0002178,2]
[391254367,1760439048188,-841.02300231,0.00021792,2]
[391254368,1760439048198,-500.0,0.00021796,2]
[391254369,1760439048210,-200.0,0.00021796,2]
[391254370,1760439048220,-5100.0,0.000218,7]
[391254371,1760439048229,-183.4394873,0.000218,5]
[391254372,1760439048239,-249.25702942,0.000218,2]
[391254373,1760439048249,-206.01260522,0.000218,2]
[391254374,1760439048258,-278.229591,0.00021817,7]
[391254375,1760439048268,-278.229591,0.00021817,7]
[391254376,1760439048277,-278.229591,0.00021817,7]
[391254377,1760439048287,-259.525822,0.00021817,7]
[391254378,1760439048296,-278.229595,0.00021817,7]
[391254379,1760439048306,-259.525822,0.00021817,7]
[391254380,1760439048316,-259.525822,0.00021817,7]
[391254381,1760439048325,-259.525819,0.00021817,7]
[391254382,1760439048334,-151.0,0.00021817,7]
[391254383,1760439048344,-151.0,0.00021817,7]
[391254384,1760439048354,-501.263301,0.00021817,7]
[391254385,1760439048363,-501.263301,0.00021817,7]
[391254386,1760439048372,-501.263301,0.00021817,7]
[391254387,1760439048382,-501.263297,0.00021817,7]
[391254388,1760439048392,-196.73936,0.00021817,7]
[391254389,1760439048406,-196.73936,0.00021817,7]
[391254390,1760439048418,-196.73936,0.00021817,7]
[391254391,1760439048427,-196.739353,0.00021817,7]
[391254392,1760439048438,-151.0,0.00021817,7]
[391254393,1760439048450,-151.0,0.00021817,7]
[391254394,1760439048459,-151.0,0.00021817,7]
[391254395,1760439048468,-150.0,0.00021825,2]
[391254396,1760439048478,-270.35834474,0.00021825,2]
[391254397,1760439048488,-150.0,0.00021825,2]
[391254398,1760439048497,-150.0,0.00021825,2]
[391254399,1760439048507,-163.7051827,0.00021841,2]
[391254400,1760439048516,-1006.02016968,0.00021849,2]
[391254401,1760439048526,-1008906.25780451,0.00021849,2]
[391254402,1760439049294,-14376.7,0.00021849,2]
[391254403,1760439049806,-253.5685215,0.00021849,2]
[391254404,1760439049817,-290.113,0.00021849,2]
[391254405,1760439049828,-7789.78199999,0.00021849,2]
[391254406,1760439049844,-926.53889141,0.00021849,2]
[391254407,1760439049855,-856.37184832,0.00021849,2]
[391254408,1760439049867,-472.01634291,0.00021849,2]
[391254409,1760439049890,-1675.1103208,0.00021849,2]
[391254410,1760439049903,-1856.86746935,0.00021849,2]
[391254411,1760439049922,-472.86339972,0.00021849,2]
[391254412,1760439049968,-938.056972,0.00021849,2]
[391254413,1760439049995,-1349.29619251,0.00021849,2]
[391254414,1760439050006,-11073.0,0.00021849,2]
[391254415,1760439050680,-151.0,0.00021678,7]
[391254416,1760439050692,-168.60070118,0.000218,2]
[391254417,1760439050702,-54840.39929883,0.00021849,2]
[391254418,1760439050714,-52442.20327184,0.00021849,2]
[391254419,1760439050726,-23742.49318347,0.00021849,2]
[391254420,1760439050737,-332.79237161,0.00021849,2]
[391254421,1760439050748,-283.4055,0.00021849,2]
[391254422,1760439050770,-1687.20177791,0.00021849,2]
[391254423,1760439050782,-264.74822207,0.00021849,2]
[391254424,1760439050793,-2926.34885632,0.00021849,2]
[391254425,1760439050806,-4807.185,0.00021849,2]
[391254426,1760439050817,-1663.970066,0.00021849,2]
[391254427,1760439050829,-398.52,0.00021849,2]
[391254428,1760439050840,-286.34490254,0.00021849,2]
[391254429,1760439050852,-366.96963075,0.00021849,2]
[391254430,1760439051999,-200.0,0.00021755,2]
[391254431,1760439052009,-396.5,0.00021849,2]
[391254432,1760439052021,-52601.02045193,0.00021849,2]
[391254433,1760439052030,-666.0,0.0002185,2]
[391254434,1760439052040,-199.873248,0.0002185,7]
[391254435,1760439052050,-151.0,0.0002185,7]
[391254436,1760439052060,-199.873248,0.0002185,7]
[391254437,1760439052070,-199.873248,0.0002185,7]
[391254438,1760439052079,-199.873248,0.0002185,7]
[391254439,1760439052089,-151.0,0.0002185,7]
[391254440,1760439052098,-392.240886,0.0002185,7]
[391254441,1760439052107,-392.240886,0.0002185,7]
[391254442,1760439052117,-392.240886,0.0002185,7]
[391254443,1760439052127,-392.240894,0.0002185,7]
[391254444,1760439052137,-681.483582,0.0002185,7]
[391254445,1760439052147,-681.483582,0.0002185,7]
[391254446,1760439052156,-681.483582,0.0002185,7]
[391254447,1760439052166,-151.0,0.0002185,7]
[391254448,1760439052175,-681.483577,0.0002185,7]
[391254449,1760439052184,-151.0,0.0002185,7]
[391254450,1760439052196,-151.0,0.0002185,7]
[391254451,1760439052206,-4289.0,0.0002185,2]
[391254452,1760439052215,-375.044836,0.00021851,2]
[391254453,1760439052225,-301873.27033089,0.00021851,2]
[391254454,1760439052237,-434.75588422,0.00021851,2]
[391254455,1760439052249,-907.439499,0.00021851,2]
[391254456,1760439052260,-3370.12173155,0.00021851,2]
[391254457,1760439052272,-3262.07704627,0.00021851,2]
[391254458,1760439052283,-644.73546548,0.00021851,2]
[391254459,1760439052296,-193537.16441196,0.00021851,2]
[391254464,1760439486402,2024.04409173,0.00027397,120]
[391254465,1760439498971,995.43,0.00010283,2]
[391254466,1760439499169,995.43,0.00010824,2]
[391254467,1760439499359,995.43,0.00011365,2]
[391254468,1760439499559,995.43,0.00011907,2]
[391254469,1760439499776,995.43,0.00012448,2]
[391254470,1760439516214,-222.67861483,0.00012989,2]
[391254471,1760439707198,-153.28346837,0.00012989,2]
[391254472,1760439707938,-183.11912878,0.00012989,2]
[391254473,1760439708490,-292.04280029,0.00012989,2]
[391254477,1760439997788,930.08757996,0.00027397,120]
[391254478,1760440018036,1240.11677316,0.00027397,120]
[391254479,1760440030622,1240.11677316,0.00027397,120]
[391254480,1760440050072,1240.11677316,0.00027397,120]
[391254481,1760440069750,1240.11677316,0.00027397,120]
[391254482,1760440086769,310.02919329,0.00027397,120]
[391254486,1760440232257,-144.30598773,0.00012989,2]
[391254487,1760440232268,-550.28906348,0.00013516,2]
[391254488,1760440232308,-129.11919485,0.00013516,2]
[391254489,1760440232318,-914.53689034,0.0001353,2]
[391254490,1760440232416,-80.89310966,0.0001353,2]
[391254491,1760440232426,-300.0,0.0001377,2]
[391254492,1760440232436,-273.59606995,0.00014071,2]
[391254493,1760440232451,-721.83393005,0.00014071,2]
[391254494,1760440232460,-222.00018184,0.00014187,2]
[391254495,1760440232470,-56.16588811,0.00014287,2]
[391254496,1760440232485,-1088.87209328,0.00014287,2]
[391254497,1760440232526,-54.96201861,0.00014287,2]
[391254498,1760440232535,-300.0,0.00014287,2]
[391254499,1760440232545,-300.0,0.00014288,2]
[391254500,1760440232555,-2470.3759748,0.00014288,2]
[391254501,1760440232564,-995.43,0.00014613,2]
[391254502,1760440232575,-995.43,0.00015154,2]
[391254504,1760440232584,-869.46319122,0.00015414,2]
[391254506,1760440232594,-9999.99,0.00015414,2]
[391254507,1760440232603,-9656.49774009,0.00015414,2]
[391254508,1760440232615,-27636.7,0.00015414,2]
[391254509,1760440232626,-275.79225991,0.00015414,2]
[391254510,1760440232636,-299.99,0.00015414,2]
[391254512,1760440232645,-73.72554435,0.00015414,2]
[391254515,1760440232656,-3691.22445565,0.00015414,2]
[391254517,1760440232666,-150.99,0.00015414,2]
[391254519,1760440232676,-420.0,0.00015648,2]
[391254521,1760440232686,-995.43,0.00015695,2]
[391254523,1760440232698,-5885.35554435,0.00015695,2]
[391254550,1760440238173,-2233.84120588,0.00015695,2]
[391254551,1760440238186,-1880.79324977,0.00015695,2]
[391254552,1760440238196,-499.99,0.00015695,2]
[391254553,1760440238207,-1222.04,0.00015695,2]
[391254554,1760440238217,-995.43,0.00016236,2]
[391254555,1760440238227,-995.43,0.00016777,2]
[391254556,1760440238237,-587.0,0.00017138,2]
[391254557,1760440238246,-995.43,0.00017319,2]
[391254558,1760440238256,-995.43,0.0001786,2]
[391254559,1760440238265,-250.0,0.00017991,2]
[391254560,1760440238275,-995.43,0.00018401,2]
[391254561,1760440238285,-823.0,0.0001877,2]
[391254562,1760440238294,-995.43,0.00018942,2]
[391254563,1760440238304,-5067.28,0.00019077,2]
[391254564,1760440238314,-1041.87115511,0.00019218,2]
[391254565,1760440238324,-6602.54,0.00019272,2]
[391254566,1760440238334,-995.43,0.00019483,2]
[391254567,1760440238343,-150.0,0.00019677,2]
[391254568,1760440238353,-150.0,0.00019677,2]
[391254569,1760440238363,-150.0,0.00019677,2]
[391254570,1760440238373,-150.0,0.00019677,2]
[391254571,1760440238382,-166.66,0.00019682,2]
[391254572,1760440238392,-311.63557553,0.00019755,2]
[391254573,1760440238402,-13235.35608806,0.00019766,2]
[391254574,1760440238412,-407.73863294,0.000199,2]
[391254575,1760440238421,-170.58102154,0.00019999,2]
[391254576,1760440238432,-118477.18158192,0.0002,7]
[391254578,1760440238450,-5539.5,0.0002,7]
[391254579,1760440238466,-363.44330138,0.0002,7]
[391254580,1760440238478,-3775.39919777,0.0002,7]
[391254582,1760440240242,-9438.5,0.0002,7]
[391254583,1760440240254,-716.309512,0.0002,7]
[391254584,1760440240402,-662.3519886,0.0002,7]
[391254585,1760440240413,-2955.27697814,0.0002,7]
[391254586,1760440240425,-3843.19189844,0.0002,7]
[391254587,1760440240436,-579.38711389,0.0002,7]
[391254588,1760440240510,-617.44428793,0.0002,7]
[391254590,1760440240522,-981.018796,0.0002,7]
[391254597,1760440243352,-485.29999995,0.0002,7]
[391254598,1760440243407,-4605.9641756,0.0002,7]
[391254599,1760440243574,-460.69007434,0.0002,7]
[391254601,1760440246270,-395.20465137,0.0002,7]
[391254602,1760440246282,-450.11533298,0.0002,7]
[391254603,1760440246327,-18783.72110969,0.0002,7]
[391254604,1760440246335,-109.81419249,0.0002,2]
[391254605,1760440246347,-192.25580751,0.0002,2]
[391254606,1760440246356,-995.43,0.00020025,2]
[391254607,1760440246366,-166.66,0.00020096,2]
[391254608,1760440246375,-407.73863286,0.00020109,2]
[391254609,1760440246384,-236.39675134,0.00020172,2]
[391254610,1760440246394,-407.73863286,0.00020318,2]
[391254611,1760440246403,-816.0,0.00020341,2]
[391254612,1760440246413,-4447.285,0.00020341,2]
[391254613,1760440246422,-4014.0,0.00020341,2]
[391254614,1760440246432,-773.0,0.00020341,2]
[391254615,1760440246441,-556.0,0.00020341,2]
[391254616,1760440246450,-166.66,0.0002051,2]
[391254617,1760440246460,-407.73863286,0.00020527,2]
[391254618,1760440246469,-1152.0,0.00020557,2]
[391254619,1760440246479,-995.43,0.00020566,2]
[391254620,1760440246488,-630.76725175,0.00020657,2]
[391254621,1760440246497,-677.5428856,0.00020694,2]
[391254622,1760440246506,-188.95,0.00020717,2]
[391254623,1760440246518,-407.73863286,0.00020736,2]
[391254624,1760440246527,-500.0,0.00020757,2]
[391254625,1760440246536,-500.0,0.00020757,2]
[391254626,1760440246546,-500.0,0.00020757,2]
[391254627,1760440246555,-500.0,0.00020757,2]
[391254628,1760440246564,-500.0,0.00020757,2]
[391254629,1760440246573,-500.0,0.00020757,2]
[391254630,1760440246582,-500.0,0.00020757,2]
[391254631,1760440246592,-500.0,0.00020757,2]
[391254632,1760440246601,-500.0,0.00020757,2]
[391254633,1760440246610,-500.0,0.00020757,2]
[391254634,1760440246619,-500.0,0.00020757,2]
[391254635,1760440246628,-500.0,0.00020757,2]
[391254636,1760440246637,-500.0,0.00020757,2]
[391254637,1760440246647,-500.0,0.00020757,2]
[391254638,1760440246656,-500.0,0.00020757,2]
[391254639,1760440246665,-500.0,0.00020757,2]
[391254640,1760440246674,-500.0,0.00020757,2]
[391254641,1760440246684,-500.0,0.00020757,2]
[391254642,1760440246693,-500.0,0.00020757,2]
[391254643,1760440246704,-500.0,0.00020757,2]
[391254644,1760440246713,-500.0,0.00020757,2]
[391254645,1760440246723,-500.0,0.00020757,2]
[391254646,1760440246732,-500.0,0.00020757,2]
[391254647,1760440246742,-500.0,0.00020757,2]
[391254648,1760440246751,-500.0,0.00020757,2]
[391254649,1760440246760,-500.0,0.00020757,2]
[391254650,1760440246769,-500.0,0.00020757,2]
[391254651,1760440246779,-500.0,0.00020757,2]
[391254652,1760440246788,-500.0,0.00020757,2]
[391254653,1760440246797,-500.0,0.00020757,2]
[391254654,1760440246807,-500.0,0.00020757,2]
[391254656,1760440246816,-500.0,0.00020757,2]
[391254657,1760440246825,-500.0,0.00020757,2]
[391254658,1760440246834,-500.0,0.00020757,2]
[391254659,1760440246843,-500.0,0.00020757,2]
[391254660,1760440246858,-500.0,0.00020757,2]
[391254661,1760440246867,-500.0,0.00020757,2]
[391254662,1760440246877,-500.0,0.00020757,2]
[391254663,1760440246886,-500.0,0.00020757,2]
[391254664,1760440246896,-994.0,0.00020757,2]
[391254665,1760440246905,-500.0,0.00020757,2]
[391254666,1760440246914,-500.0,0.00020757,2]
[391254667,1760440246923,-500.0,0.00020757,2]
[391254668,1760440246932,-500.0,0.00020757,2]
[391254669,1760440246941,-500.0,0.00020757,2]
[391254670,1760440246951,-500.0,0.00020757,2]
[391254671,1760440246961,-500.0,0.00020757,2]
[391254672,1760440246970,-500.0,0.00020757,2]
[391254673,1760440246978,-500.0,0.00020757,2]
[391254674,1760440246987,-500.0,0.00020757,2]
[391254675,1760440246997,-500.0,0.00020757,2]
[391254676,1760440247006,-500.0,0.00020757,2]
[391254677,1760440247015,-500.0,0.00020757,2]
[391254678,1760440247024,-500.0,0.00020757,2]
[391254679,1760440247033,-500.0,0.00020757,2]
[391254680,1760440247042,-500.0,0.00020757,2]
[391254681,1760440247052,-500.0,0.00020757,2]
[391254682,1760440247061,-500.0,0.00020757,2]
[391254683,1760440247070,-500.0,0.00020757,2]
[391254684,1760440247079,-500.0,0.00020757,2]
[391254685,1760440247088,-500.0,0.00020757,2]
[391254686,1760440247098,-500.0,0.00020757,2]
[391254687,1760440247107,-500.0,0.00020757,2]
[391254688,1760440247116,-500.0,0.00020757,2]
[391254689,1760440247125,-500.0,0.00020757,2]
[391254690,1760440247134,-500.0,0.00020757,2]
[391254691,1760440247143,-500.0,0.00020757,2]
[391254692,1760440247152,-500.0,0.00020757,2]
[391254693,1760440247161,-500.0,0.00020757,2]
[391254694,1760440247171,-500.0,0.00020757,2]
[391254695,1760440247180,-500.0,0.00020757,2]
[391254696,1760440247190,-500.0,0.00020757,2]
[391254697,1760440247204,-500.0,0.00020757,2]
[391254698,1760440247215,-500.0,0.00020757,2]
[391254699,1760440247225,-500.0,0.00020757,2]
[391254700,1760440247235,-500.0,0.00020757,2]
[391254701,1760440247246,-500.0,0.00020757,2]
[391254702,1760440247257,-500.0,0.00020757,2]
[391254703,1760440247267,-500.0,0.00020757,2]
[391254704,1760440247278,-500.0,0.00020757,2]
[391254705,1760440247289,-500.0,0.00020757,2]
[391254706,1760440247300,-500.0,0.00020757,2]
[391254707,1760440247311,-500.0,0.00020757,2]
[391254708,1760440247322,-500.0,0.00020757,2]
[391254709,1760440247333,-500.0,0.00020757,2]
[391254710,1760440247344,-500.0,0.00020757,2]
[391254711,1760440247354,-500.0,0.00020757,2]
[391254712,1760440247365,-500.0,0.00020757,2]
[391254713,1760440247376,-500.0,0.00020757,2]
[391254714,1760440247527,-500.0,0.00020757,2]
[391254715,1760440247557,-500.0,0.00020757,2]
[391254716,1760440247567,-500.0,0.00020757,2]
[391254717,1760440247577,-500.0,0.00020757,2]
[391254718,1760440247587,-500.0,0.00020757,2]
[391254719,1760440247597,-500.0,0.00020757,2]
[391254720,1760440247607,-500.0,0.00020757,2]
[391254721,1760440247617,-500.0,0.00020757,2]
[391254722,1760440247627,-500.0,0.00020757,2]
[391254723,1760440247636,-500.0,0.00020757,2]
[391254724,1760440247646,-500.0,0.00020757,2]
[391254725,1760440247655,-500.0,0.00020757,2]
[391254726,1760440247666,-500.0,0.00020757,2]
[391254727,1760440247675,-500.0,0.00020757,2]
[391254728,1760440247684,-500.0,0.00020757,2]
[391254729,1760440247694,-500.0,0.00020757,2]
[391254730,1760440247707,-500.0,0.00020757,2]
[391254731,1760440247717,-500.0,0.00020757,2]
[391254732,1760440247727,-500.0,0.00020757,2]
[391254733,1760440247736,-500.0,0.00020757,2]
[391254734,1760440247745,-500.0,0.00020757,2]
[391254735,1760440247754,-500.0,0.00020757,2]
[391254736,1760440247763,-500.0,0.00020757,2]
[391254737,1760440247773,-500.0,0.00020757,2]
[391254738,1760440247782,-500.0,0.00020757,2]
[391254739,1760440247791,-500.0,0.00020757,2]
[391254740,1760440247800,-500.0,0.00020757,2]
[391254741,1760440247810,-500.0,0.00020757,2]
[391254742,1760440247819,-500.0,0.00020757,2]
[391254743,1760440247828,-584.0,0.00020757,2]
[391254744,1760440247838,-506.43,0.00020757,2]
[391254745,1760440247848,-193.4,0.00020768,2]
[391254746,1760440247857,-305.36,0.00020778,2]
[391254747,1760440247866,-301.82,0.00020782,2]
[391254748,1760440247879,-303.98,0.00020789,2]
[391254749,1760440247888,-302.27,0.00020789,2]
[391254750,1760440247898,-2000.0,0.00020794,2]
[391254751,1760440247907,-2000.0,0.00020794,2]
[391254752,1760440247916,-1767.77301779,0.00020794,2]
[391254753,1760440247926,-192.21256103,0.00020794,2]
[391254754,1760440247935,-980.37667936,0.00020794,2]
[391254755,1760440247945,-721.12765535,0.00020794,2]
[391254756,1760440247959,-277.35679052,0.00020794,2]
[391254757,1760440247968,-322.6107,0.00020794,2]
[391254758,1760440247978,-302.25,0.00020798,2]
[391254759,1760440247987,-500.0,0.000208,2]
[391254760,1760440247996,-500.0,0.000208,2]
[391254761,1760440248005,-500.0,0.000208,2]
[391254762,1760440248014,-500.0,0.000208,2]
[391254763,1760440248026,-500.0,0.000208,2]
[391254764,1760440248035,-304.7,0.0002081,2]
[391254765,1760440248044,-677.54288556,0.00020815,2]
[391254766,1760440248053,-301.23,0.00020826,2]
[391254767,1760440248063,-302.71,0.00020856,2]
[391254768,1760440248072,-301.55,0.00020856,2]
[391254769,1760440248081,-300.26,0.00020856,2]
[391254770,1760440248090,-302.24,0.00020856,2]
[391254771,1760440248099,-1000.0,0.00020857,2]
[391254772,1760440248109,-305.26,0.00020857,2]
[391254773,1760440248118,-304.02,0.00020857,2]
[391254774,1760440248127,-304.01,0.00020857,2]
[391254775,1760440248137,-301.36,0.00020857,2]
[391254776,1760440248146,-150.39,0.00020885,2]
[391254777,1760440248155,-151.84,0.00020885,2]
[391254778,1760440248164,-301.81,0.00020885,2]
[391254779,1760440248174,-472.38,0.00020885,2]
[391254780,1760440248183,-300.84,0.00020887,2]
[391254781,1760440248192,-610.0,0.00020897,2]
[391254782,1760440248202,-166.66,0.00020925,2]
[391254783,1760440248215,-677.54288556,0.00020935,2]
[391254784,1760440248225,-285.9348726,0.00020956,2]
[391254785,1760440248235,-15589.0,0.00021,3]
[391254786,1760440248245,-506.43,0.00021031,2]
[391254787,1760440248254,-677.54288556,0.00021056,2]
[391254788,1760440248264,-150.0,0.00021068,2]
[391254789,1760440248274,-677.54288556,0.00021177,2]
[391254790,1760440248283,-2384.29669117,0.00021221,2]
[391254791,1760440248292,-677.54288556,0.00021297,2]
[391254792,1760440248301,-506.43,0.00021305,2]
[391254793,1760440248311,-166.66,0.00021339,2]
[391254794,1760440248321,-1000.0,0.00021348,2]